[Event "FIDE World School-ch G-17 2025"]
[Site "Vrnjacka Banja"]
[Date "2025.03.27"]
[Round "8.1"]
[White "Nauanova Zhaniya"]
[Black "Buyankhishig, Batpelden"]
[Result "0-1"]
[Annotator "NA RC"]
[ECO "C45"]
[WhiteElo "1905"]
[BlackElo "1907"]
[PlyCount "148"]
[EventDate "2025.03.19"]
[EventType "swiss"]
[EventCountry "SRB"]
[SourceTitle "playchess.com"]
[Source "ChessBase"]
[SourceQuality "1"]
[TimeControl "5400+30"]

1. e4 {[%emt 0:00:03]} e5 {[%emt 0:00:22]} 2. Nf3 {[%emt 0:00:12]} Nc6 {[%emt 0:00:07]} 3. d4 {[%emt 0:00:09]} exd4 {[%emt 0:00:10]} 4. Nxd4 {[%emt 0:00:07]} Nf6 {[%emt 0:00:08]} 5. Nxc6 {[%emt 0:00:06]} bxc6 {[%emt 0:00:06]} 6. Bd3 {[%emt 0:00:05]} d5 {[%emt 0:07:43]} 7. O-O {[%emt 0:00:22]} dxe4 {[%emt 0:06:10]} 8. Qe1 {[%emt 0:00:23]} Qe7 {[%emt 0:09:29]} 9. Qc3 {[%emt 0:00:12]} Qc5 {[%emt 0:05:39]} 10. Re1 {[%emt 0:00:19]} Be6 {[%emt 0:02:03]} 11. Bxe4 {[%emt 0:01:19]} Nxe4 {[%emt 0:00:13]} 12. Rxe4 {[%emt 0:00:13]} O-O-O {[%emt 0:04:34]} 13. Re1 {[%emt 0:00:12]} Bd6 {[%emt 0:01:45]} 14. Qxc5 {[%emt 0:02:36]} Bxc5 {[%emt 0:00:02]} 15. Nc3 {[%emt 0:00:32]} Bf5 {[%emt 0:05:49]} 16. Be3 {[%emt 0:06:32]} Bxe3 {[%emt 0:07:20]} 17. Rxe3 {[%emt 0:00:06]} Rd2 {[%emt 0:04:51]} 18. Re2 {[%emt 0:15:19]} Rhd8 {[%emt 0:05:48]} 19. Kf1 {[%emt 0:01:42]} Bxc2 {[%emt 0:05:30]} 20. Rxd2 {[%emt 0:01:18]} Rxd2 {[%emt 0:00:01]} 21. Ke1 {[%emt 0:00:20]} Rd6 {[%emt 0:02:45]} 22. Rc1 {[%emt 0:01:06]} Bd3 {[%emt 0:02:38]} 23. f3 {[%emt 0:13:43]} Rh6 {[%emt 0:04:14]} 24. h3 {[%emt 0:01:17]} Bc4 {[%emt 0:01:05]} 25. b3 {[%emt 0:02:55]} Bd5 {[%emt 0:00:49]} 26. Kf2 {[%emt 0:02:02]} Rd6 {[%emt 0:03:38]} 27. Ke3 {[%emt 0:03:48]} Kd7 {[%emt 0:02:32]} 28. Na4 {[%emt 0:03:56]} Re6+ {[%emt 0:01:11]} 29. Kf2 {[%emt 0:00:23]} Re8 {[%emt 0:06:30]} 30. Nc5+ {[%emt 0:06:13]} Kd6 {[%emt 0:00:20]} 31. Nb7+ {[%emt 0:01:29]} Kd7 {[%emt 0:00:02]} 32. Nc5+ {[%emt 0:00:04]} Kc8 {[%emt 0:02:18]} 33. Na4 {[%emt 0:06:04]} g5 {[%emt 0:02:22]} 34. Nc3 {[%emt 0:03:11]} h5 {[%emt 0:02:26]} 35. Ne2 {[%emt 0:03:55]} Kb7 {[%emt 0:02:06]} 36. Ng3 {[%emt 0:03:05]} h4 {[%emt 0:00:32]} 37. Ne2 {[%emt 0:02:35]} Kb6 {[%emt 0:01:09]} 38. Nc3 {[%emt 0:01:17]} Re5 {[%emt 0:00:54]} 39. Rd1 {[%emt 0:03:48]} Kc5 {[%emt 0:00:52]} 40. Rd2 {[%emt 0:01:17]} Kb4 {[%emt 0:01:02]} 41. Nd1 {[%emt 0:03:46]} c5 {[%emt 0:02:12]} 42. Ne3 {[%emt 0:02:23]} c6 {[%emt 0:00:33]} 43. Re2 {[%emt 0:02:21]} f6 {[%emt 0:01:11]} 44. Rc2 {[%emt 0:00:45]} Be6 {[%emt 0:00:36]} 45. Rc1 {[%emt 0:01:28]} f5 {[%emt 0:00:30]} 46. Re1 {[%emt 0:00:55]} Kb5 {[%emt 0:00:17]} 47. Rc1 {[%emt 0:03:23]} f4 {[%emt 0:00:09]} 48. Nc4 {[%emt 0:01:16]} Bxc4 {[%emt 0:00:42]} 49. Rxc4 {[%emt 0:00:05]} Rd5 {[%emt 0:00:26]} 50. Ke1 {[%emt 0:00:34]} Rd4 {[%emt 0:00:30]} 51. Rc2 {[%emt 0:00:09]} c4 {[%emt 0:00:36]} 52. bxc4+ {[%emt 0:00:36]} Rxc4 {[%emt 0:00:01]} 53. Re2 {[%emt 0:00:22]} Rd4 {[%emt 0:00:18]} 54. Re8 {[%emt 0:01:12]} Rd5 {[%emt 0:00:36]} 55. Rc8 {[%emt 0:01:16]} c5 {[%emt 0:00:27]} 56. Ke2 {[%emt 0:00:25]} a5 {[%emt 0:00:08]} 57. Rb8+ {[%emt 0:00:44]} Kc4 {[%emt 0:00:24]} 58. Ke1 {[%emt 0:01:46]} a4 {[%emt 0:00:32]} 59. Rb7 {[%emt 0:00:36]} Kc3 {[%emt 0:00:33]} 60. Rb5 {[%emt 0:00:26]} Kc4 {[%emt 0:00:22]} 61. Rb8 {[%emt 0:00:13]} Kc3 {[%emt 0:01:57]} 62. Rb5 {[%emt 0:00:06]} Kc4 {[%emt 0:00:06]} 63. Rb8 {[%emt 0:00:05]} Rd7 {[%emt 0:00:59]} 64. Rb1 {[%emt 0:02:04]} Kc3 {[%emt 0:00:19]} 65. Rc1+ {[%emt 0:00:18]} Kb4 {[%emt 0:00:00]} 66. a3+ {[%emt 0:00:31]} Kb5 {[%emt 0:00:06]} 67. Rb1+ {[%emt 0:00:03]} Kc6 {[%emt 0:00:49]} 68. Ke2 {[%emt 0:00:05]} Rb7 {[%emt 0:00:34]} 69. Rd1 {[%emt 0:00:55]} Rb2+ {[%emt 0:00:16]} 70. Kf1 {[%emt 0:00:06]} Ra2 {[%emt 0:00:30]} 71. Rd3 {[%emt 0:00:26]} Kb5 {[%emt 0:01:02]} 72. Rd5 {[%emt 0:00:14]} Rxa3 {[%emt 0:00:04]} 73. Rxg5 {[%emt 0:00:04]} Ra1+ {[%emt 0:00:16]} 74. Ke2 {[%emt 0:00:04]} a3 {[%emt 0:00:07]} 0-1

[Event "FIDE World School-ch G-17 2025"]
[Site "Vrnjacka Banja"]
[Date "2025.03.27"]
[Round "8.2"]
[White "Kirtadze, Anastasia"]
[Black "Seyhan, Pelin"]
[Result "1-0"]
[Annotator "TA"]
[ECO "B38"]
[WhiteElo "2180"]
[BlackElo "1924"]
[PlyCount "75"]
[EventDate "2025.03.19"]
[EventType "swiss"]
[EventCountry "SRB"]
[SourceTitle "playchess.com"]
[Source "ChessBase"]
[SourceQuality "1"]
[TimeControl "5400+30"]

{[%evp 19,75,58,56,57,51,52,80,51,71,78,114,102,117,81,95,50,164,172,245,223,269,190,187,189,185,205,199,207,200,218,217,218,220,214,214,195,382,393,452,440,481,470,447,419,554,562,566,551,760,668,1077,641,29989,29990,29993,29994,29994,29995]} 1. e4 {[%emt 0:00:02]} c5 {[%emt 0:00:05]} 2. Nf3 {[%emt 0:00:05]} Nc6 {[%emt 0:00:04]} 3. d4 {[%emt 0:00:03]} cxd4 {[%emt 0:00:08]} 4. Nxd4 {[%emt 0:00:04]} g6 {[%emt 0:02:04]} 5. c4 {[%emt 0:00:17]} Bg7 {[%emt 0:00:05]} 6. Be3 {[%emt 0:00:27]} Nf6 {[%emt 0:04:01]} 7. Nc3 {[%emt 0:00:31]} d6 {[%emt 0:00:09]} 8. Be2 {[%emt 0:00:06]} O-O {[%emt 0:01:52]} 9. O-O {[%emt 0:00:09]} Bd7 {[%emt 0:00:30]} 10. Nc2 {[%emt 0:01:07]} Rc8 {[%emt 0:12:51]} 11. Rc1 {[%emt 0:09:52] B38: Sicilian: Maroczy Bind with 5...Bg7 and 7...0-0.} Ne5 {[%emt 0:06:36]} 12. b3 {[%emt 0:06:14]} (12. Bxa7 b6 (12... Nxc4 13. Bxc4 Rxc4 14. Qd3 $11) 13. Nd4 Qc7 $17 (13... Nxc4 14. b3 $15)) 12... Bc6 {[%emt 0:12:01]} 13. f4 {[%emt 0:11:49][%cal Bf2f4,Bf4f5][%mdl 32] White is better.} (13. Bxa7 b6 (13... Nxe4 14. Bd4 $11) 14. f4 Ned7 $15) 13... Ned7 {[%emt 0:00:47]} 14. Bf3 {[%emt 0:04:47][%cal Oc2d4] White is more active.} (14. Bxa7 b6 (14... Nxe4 15. Nxe4 Bxe4 16. Bd4 $15) 15. Nd4 Nxe4 $17 (15... Bxe4 16. Ndb5 $11)) 14... a6 $146 {[%emt 0:05:09]} (14... b6 15. Nd4 Ba8 16. Nd5 Nc5 17. Nb5 Nfxe4 18. Nxa7 Bxd5 19. Nxc8 Bb7 20. Na7 Qa8 {1-0 Mikhalsky,V (2219)-Demina,M (1936) Titled Tuesday intern op 28th Nov Late blitz 2023 (2)}) 15. Nd4 {[%emt 0:11:17]} Qa5 {[%emt 0:11:05]} 16. Rf2 {[%emt 0:14:06]} e5 {[%emt 0:08:12]} 17. Nxc6 {[%emt 0:05:50]} Rxc6 {[%emt 0:00:29]} ({Black should try} 17... bxc6 $14 18. f5 (18. Qxd6 exf4 19. b4 Qd8 $16) 18... gxf5) 18. f5 $18 {[%emt 0:01:53]} b5 {[%emt 0:02:38] [#]} (18... h6 {might work better.} 19. fxg6 fxg6) 19. g4 $1 {[%emt 0:02:52]} b4 {[%emt 0:05:51]} 20. Nd5 {[%emt 0:06:32]} Nxd5 {[%emt 0:01:40]} 21. exd5 {[%emt 0:00:08]} (21. Qxd5 Qxd5 22. exd5 Rcc8) 21... Rcc8 {[%emt 0:02:48]} 22. Be4 {[%emt 0:00:56]} Nc5 {[%emt 0:02:07]} 23. Bb1 {[%emt 0:08:33]} Qd8 {[%emt 0:05:07]} 24. g5 {[%emt 0:01:21]} Qd7 {[%emt 0:03:28]} 25. f6 {[%emt 0:08:34]} Bh8 {[%emt 0:00:05]} 26. Bxc5 {[%emt 0:01:22]} Rxc5 {[%emt 0:02:22] Black is weak on the light squares} 27. Qf3 {[%emt 0:00:12] Prevents Qh3} a5 $2 {[%emt 0:02:14]} (27... e4 28. Bxe4 (28. Qxe4 Re8 $18) 28... Re8) 28. h4 {[%emt 0:00:01][%cal Bh2h4,Bh4h5][%mdl 32]} a4 {[%emt 0:03:02]} 29. h5 {[%emt 0:00:01]} axb3 {[%emt 0:01:44]} 30. axb3 {[%emt 0:00:02]} Rc7 {[%emt 0:01:25]} 31. Rh2 {[%emt 0:01:44]} Qc8 {[%emt 0:02:47]} 32. Kg2 {[%emt 0:01:20]} e4 {[%emt 0:01:24]} 33. Bxe4 {[%emt 0:00:35]} Qa6 {[%emt 0:00:42]} 34. Rch1 {[%emt 0:02:54] [#]} Qa3 {[%emt 0:00:10]} 35. Kg3 {[%emt 0:00:58] Threatens to win with hxg6.} Re8 {[%emt 0:00:44]} 36. hxg6 {[%emt 0:00:50] White mates.} Rxe4 {[%emt 0:01:03]} 37. Rxh7 {[%emt 0:00:36][%csl Gh1][%cal Rh7h8]} Bxf6 {[%emt 0:00:34]} 38. gxf6 {[%emt 0:00:17] Weighted Error Value: White=0.25 (precise) /Black=0.79  Mistake:       	---       	Black=3      Inaccurate:     	White=2     	Black=5      OK:         	White=11    	Black=7      Best:        	White=1     	---} 1-0

[Event "FIDE World School-ch G-17 2025"]
[Site "Vrnjacka Banja"]
[Date "2025.03.27"]
[Round "8.3"]
[White "Altynbek, Aiaru"]
[Black "Newansa, M Esandi"]
[Result "0-1"]
[Annotator "NA RC"]
[ECO "D15"]
[WhiteElo "2005"]
[BlackElo "1801"]
[PlyCount "100"]
[EventDate "2025.03.19"]
[EventType "swiss"]
[EventCountry "SRB"]
[SourceTitle "playchess.com"]
[Source "ChessBase"]
[SourceQuality "1"]
[TimeControl "5400+30"]

1. d4 {[%emt 0:00:04]} d5 {[%emt 0:02:23]} 2. c4 {[%emt 0:00:24]} c6 {[%emt 0:00:08]} 3. Nf3 {[%emt 0:00:19]} Nf6 {[%emt 0:00:06]} 4. Nc3 {[%emt 0:00:16]} dxc4 {[%emt 0:00:09]} 5. e4 {[%emt 0:00:22]} b5 {[%emt 0:00:24]} 6. Be2 {[%emt 0:00:27]} e6 {[%emt 0:06:56]} 7. a4 {[%emt 0:00:30]} b4 {[%emt 0:01:44]} 8. e5 {[%emt 0:00:37]} bxc3 {[%emt 0:08:06]} 9. exf6 {[%emt 0:00:20]} cxb2 {[%emt 0:01:22]} 10. fxg7 {[%emt 0:00:26]} Bxg7 {[%emt 0:00:20]} 11. Bxb2 {[%emt 0:00:15]} Qa5+ {[%emt 0:01:29]} 12. Kf1 {[%emt 0:06:10]} O-O {[%emt 0:10:25]} 13. Qc1 {[%emt 0:16:18]} Nd7 {[%emt 0:03:50]} 14. Bc3 {[%emt 0:05:44]} Qd5 {[%emt 0:03:58]} 15. h4 {[%emt 0:10:21]} Ba6 {[%emt 0:06:33]} 16. Rh3 {[%emt 0:03:30]} Kh8 {[%emt 0:09:00]} 17. Rg3 {[%emt 0:07:11]} f6 {[%emt 0:01:56]} 18. Ne1 {[%emt 0:15:40]} Rg8 {[%emt 0:08:10]} 19. Nc2 {[%emt 0:05:38]} Bf8 {[%emt 0:04:18]} 20. Rxg8+ {[%emt 0:07:33]} Kxg8 {[%emt 0:00:07]} 21. Qe3 {[%emt 0:00:48]} Re8 {[%emt 0:10:29]} 22. Kg1 {[%emt 0:06:03]} Qf5 {[%emt 0:00:59]} 23. Nb4 {[%emt 0:01:03]} Bxb4 {[%emt 0:01:00]} 24. Bxb4 {[%emt 0:00:01]} Nb6 {[%emt 0:00:48]} 25. Qg3+ {[%emt 0:01:30]} Kh8 {[%emt 0:03:42]} 26. Bg4 {[%emt 0:00:36]} Qg6 {[%emt 0:00:36]} 27. Qf3 {[%emt 0:01:09]} Nd5 {[%emt 0:03:54]} 28. Bd2 {[%emt 0:09:37]} Qd3 {[%emt 0:00:46]} 29. Be3 {[%emt 0:00:00]} Re7 {[%emt 0:02:13]} 30. Rd1 {[%emt 0:01:17]} Qg6 {[%emt 0:00:18]} 31. h5 {[%emt 0:00:19]} Qg8 {[%emt 0:00:30]} 32. h6 {[%emt 0:00:49]} c3 {[%emt 0:01:07]} 33. Bc1 {[%emt 0:00:22]} Bc4 {[%emt 0:02:44]} 34. Re1 {[%emt 0:00:23]} c2 {[%emt 0:01:45]} 35. Qe4 {[%emt 0:00:39]} Qg6 {[%emt 0:00:38]} 36. Qf3 {[%emt 0:00:24]} Qd3 {[%emt 0:01:38]} 37. Be3 {[%emt 0:00:33]} Qg6 {[%emt 0:00:40]} 38. Bc1 {[%emt 0:00:40]} Qd3 {[%emt 0:00:30]} 39. Be3 {[%emt 0:00:04]} Qg6 {[%emt 0:00:16]} 40. Bc1 {[%emt 0:01:18]} Qd3 {[%emt 0:00:09]} 41. Be3 {[%emt 0:00:28]} Qg6 {[%emt 0:00:07]} 42. Rc1 {[%emt 0:00:35]} Nxe3 {[%emt 0:00:58]} 43. fxe3 {[%emt 0:00:02]} Bd5 {[%emt 0:00:33]} 44. Qg3 {[%emt 0:00:18]} e5 {[%emt 0:00:31]} 45. dxe5 {[%emt 0:00:36]} f5 {[%emt 0:00:59]} 46. Qh4 {[%emt 0:00:28]} Qxg4 {[%emt 0:00:22]} 47. Qf6+ {[%emt 0:00:21]} Kg8 {[%emt 0:00:05]} 48. Rxc2 {[%emt 0:00:05]} Qd1+ {[%emt 0:00:09]} 49. Kh2 {[%emt 0:00:03]} Qxc2 {[%emt 0:00:10]} 50. Qg5+ {[%emt 0:00:06]} Kf8 {[%emt 0:00:13]} 0-1

[Event "FIDE World School-ch G-17 2025"]
[Site "Vrnjacka Banja"]
[Date "2025.03.27"]
[Round "8.4"]
[White "Maslova, Anastasiya Yar"]
[Black "Wang, Chloe Heather"]
[Result "1-0"]
[Annotator "NA RC"]
[ECO "A25"]
[WhiteElo "1938"]
[BlackElo "1892"]
[PlyCount "61"]
[EventDate "2025.03.19"]
[EventType "swiss"]
[EventCountry "SRB"]
[SourceTitle "playchess.com"]
[Source "ChessBase"]
[SourceQuality "1"]
[TimeControl "5400+30"]

1. c4 {[%emt 0:00:02]} e5 {[%emt 0:01:02]} 2. g3 {[%emt 0:00:58]} Nc6 {[%emt 0:00:34]} 3. Bg2 {[%emt 0:01:18]} f5 {[%emt 0:02:08]} 4. Nc3 {[%emt 0:02:36]} Nf6 {[%emt 0:00:23]} 5. d3 {[%emt 0:02:48]} d6 {[%emt 0:00:59]} 6. Rb1 {[%emt 0:05:04]} g6 {[%emt 0:03:44]} 7. e3 {[%emt 0:06:29]} Bg7 {[%emt 0:01:47]} 8. Nge2 {[%emt 0:00:50]} O-O {[%emt 0:01:21]} 9. b4 {[%emt 0:02:31]} Qe7 {[%emt 0:05:05]} 10. O-O {[%emt 0:03:42]} Qf7 {[%emt 0:11:29]} 11. Nd5 {[%emt 0:11:01]} Be6 {[%emt 0:11:53]} 12. Nec3 {[%emt 0:03:06]} Nd8 {[%emt 0:02:59]} 13. Nxf6+ {[%emt 0:14:31]} Qxf6 {[%emt 0:06:54]} 14. a4 {[%emt 0:10:56]} e4 {[%emt 0:09:19]} 15. Nd5 {[%emt 0:00:53]} Qf7 {[%emt 0:02:07]} 16. Nf4 {[%emt 0:01:27]} Kh8 {[%emt 0:10:27]} 17. Bb2 {[%emt 0:04:57]} Bxb2 {[%emt 0:05:03]} 18. Rxb2 {[%emt 0:00:19]} Bd7 {[%emt 0:03:43]} 19. dxe4 {[%emt 0:04:00]} Qxc4 {[%emt 0:01:25]} 20. Qa1 {[%emt 0:05:32]} Qc3 {[%emt 0:02:48]} 21. Rc1 {[%emt 0:00:47]} Qe5 {[%emt 0:01:58]} 22. Rxc7 {[%emt 0:02:18]} Bc6 {[%emt 0:01:01]} 23. b5 {[%emt 0:02:29]} Bxe4 {[%emt 0:00:26]} 24. Qc1 {[%emt 0:01:38]} Rf7 {[%emt 0:06:21]} 25. Rd2 {[%emt 0:02:44]} Bxg2 {[%emt 0:03:24]} 26. Kxg2 {[%emt 0:01:27]} Qe4+ {[%emt 0:00:31]} 27. Kg1 {[%emt 0:00:15]} g5 {[%emt 0:04:14]} 28. Nh5 {[%emt 0:02:20]} g4 {[%emt 0:00:47]} 29. Qb2+ {[%emt 0:01:12]} Kg8 {[%emt 0:00:36]} 30. Rxf7 {[%emt 0:00:26]} Kxf7 {[%emt 0:00:14]} 31. Qf6+ {[%emt 0:07:24]} 1-0

[Event "FIDE World School-ch G-17 2025"]
[Site "Vrnjacka Banja"]
[Date "2025.03.27"]
[Round "8.5"]
[White "Jankovic, Tamara"]
[Black "Stoimenov, Jana"]
[Result "1/2-1/2"]
[Annotator "NA RC"]
[ECO "C54"]
[WhiteElo "1900"]
[BlackElo "1509"]
[PlyCount "75"]
[EventDate "2025.03.19"]
[EventType "swiss"]
[EventCountry "SRB"]
[SourceTitle "playchess.com"]
[Source "ChessBase"]
[SourceQuality "1"]
[TimeControl "5400+30"]

1. e4 {[%emt 0:00:02]} e5 {[%emt 0:04:24]} 2. Nf3 {[%emt 0:00:45]} Nc6 {[%emt 0:00:07]} 3. Bc4 {[%emt 0:00:06]} Bc5 {[%emt 0:00:15]} 4. c3 {[%emt 0:00:06]} Nf6 {[%emt 0:09:56]} 5. d3 {[%emt 0:00:07]} d6 {[%emt 0:07:56]} 6. O-O {[%emt 0:00:15]} h6 {[%emt 0:00:40]} 7. a4 {[%emt 0:00:57]} a5 {[%emt 0:02:38]} 8. Nbd2 {[%emt 0:00:21]} O-O {[%emt 0:00:36]} 9. Re1 {[%emt 0:00:12]} Ne7 {[%emt 0:04:16]} 10. Nf1 {[%emt 0:00:45]} Ng6 {[%emt 0:01:10]} 11. h3 {[%emt 0:02:34]} c6 {[%emt 0:08:02]} 12. Bb3 {[%emt 0:03:30]} Be6 {[%emt 0:13:21]} 13. Bc2 {[%emt 0:02:05]} Nh5 {[%emt 0:10:49]} 14. d4 {[%emt 0:08:28]} Bb6 {[%emt 0:01:51]} 15. Nxe5 {[%emt 0:09:07]} dxe5 {[%emt 0:00:28]} 16. Qxh5 {[%emt 0:00:06]} Qf6 {[%emt 0:05:42]} 17. Be3 {[%emt 0:04:24]} exd4 {[%emt 0:06:56]} 18. cxd4 {[%emt 0:13:23]} Bxd4 {[%emt 0:01:03]} 19. Bxd4 {[%emt 0:14:50]} Qxd4 {[%emt 0:00:25]} 20. Ne3 {[%emt 0:02:07]} Qxb2 {[%emt 0:02:32]} 21. Rab1 {[%emt 0:06:24]} Qc3 {[%emt 0:17:53]} 22. Rec1 {[%emt 0:01:25]} Rab8 {[%emt 0:00:00]} 23. e5 {[%emt 0:11:44]} Qd4 {[%emt 0:00:00]} 24. Re1 {[%emt 0:03:19]} Nxe5 {[%emt 0:00:00]} 25. Nf5 {[%emt 0:03:29]} Bxf5 {[%emt 0:00:00]} 26. Qxf5 {[%emt 0:00:26]} Ng6 {[%emt 0:00:00]} 27. Qxa5 {[%emt 0:01:03]} b6 {[%emt 0:00:00]} 28. Qa7 {[%emt 0:01:06]} Qc5 {[%emt 0:00:00]} 29. Bb3 {[%emt 0:01:11]} Ra8 {[%emt 0:00:08]} 30. Qc7 {[%emt 0:06:11]} Rac8 {[%emt 0:02:10]} 31. Qb7 {[%emt 0:01:12]} Rb8 {[%emt 0:00:17]} 32. Qc7 {[%emt 0:00:55]} Rbc8 {[%emt 0:00:06]} 33. Qg3 {[%emt 0:00:27]} Kh7 {[%emt 0:00:14]} 34. Rbc1 {[%emt 0:01:08]} Qd4 {[%emt 0:00:35]} 35. Rc4 {[%emt 0:00:21]} Qd7 {[%emt 0:00:47]} 36. Rd1 {[%emt 0:00:33]} Qc7 {[%emt 0:00:53]} 37. Qc3 {[%emt 0:00:59]} c5 {[%emt 0:00:38]} 38. Bc2 {[%emt 0:01:10]} 1/2-1/2

[Event "FIDE World School-ch G-17 2025"]
[Site "Vrnjacka Banja"]
[Date "2025.03.27"]
[Round "8.6"]
[White "Orazalina, Nursulu"]
[Black "Dange, Gehansa Ranumi"]
[Result "1-0"]
[Annotator "NA RC"]
[ECO "B11"]
[WhiteElo "1895"]
[BlackElo "1643"]
[PlyCount "89"]
[EventDate "2025.03.19"]
[EventType "swiss"]
[EventCountry "SRB"]
[SourceTitle "playchess.com"]
[Source "ChessBase"]
[SourceQuality "1"]
[TimeControl "5400+30"]

1. e4 {[%emt 0:00:02]} c6 {[%emt 0:00:32]} 2. Nc3 {[%emt 0:00:04]} d5 {[%emt 0:00:10]} 3. Nf3 {[%emt 0:00:04]} dxe4 {[%emt 0:00:10]} 4. Nxe4 {[%emt 0:00:05]} Nf6 {[%emt 0:00:08]} 5. Qe2 {[%emt 0:00:10]} Nxe4 {[%emt 0:00:18]} 6. Qxe4 {[%emt 0:00:06]} Qa5 {[%emt 0:00:05]} 7. c3 {[%emt 0:02:43]} Bf5 {[%emt 0:00:48]} 8. Qe3 {[%emt 0:02:21]} e6 {[%emt 0:05:21]} 9. d4 {[%emt 0:07:22]} Nd7 {[%emt 0:02:14]} 10. Be2 {[%emt 0:03:30]} Be7 {[%emt 0:07:37]} 11. O-O {[%emt 0:02:46]} O-O {[%emt 0:01:46]} 12. b3 {[%emt 0:07:03]} Nf6 {[%emt 0:05:27]} 13. Bb2 {[%emt 0:04:22]} Bd6 {[%emt 0:07:40]} 14. c4 {[%emt 0:14:23]} Qc7 {[%emt 0:03:46]} 15. Ne5 {[%emt 0:04:28]} Rfd8 {[%emt 0:08:19]} 16. f4 {[%emt 0:12:46]} c5 {[%emt 0:10:19]} 17. Bf3 {[%emt 0:00:33]} h6 {[%emt 0:08:11]} 18. h3 {[%emt 0:10:30]} Nd7 {[%emt 0:04:48]} 19. g4 {[%emt 0:00:33]} cxd4 {[%emt 0:00:50]} 20. Bxd4 {[%emt 0:00:14]} Bh7 {[%emt 0:00:16]} 21. Kh1 {[%emt 0:12:30]} Nxe5 {[%emt 0:01:03]} 22. fxe5 {[%emt 0:01:38]} Be7 {[%emt 0:00:06]} 23. Bg2 {[%emt 0:02:16]} Bg5 {[%emt 0:02:16]} 24. Qf2 {[%emt 0:00:19]} Rd7 {[%emt 0:00:09]} 25. Bc3 {[%emt 0:04:36]} Rd3 {[%emt 0:03:55]} 26. Bb4 {[%emt 0:00:05]} Be3 {[%emt 0:01:16]} 27. Bd6 {[%emt 0:00:12]} Bxf2 {[%emt 0:08:38]} 28. Bxc7 {[%emt 0:00:06]} Rc8 {[%emt 0:00:04]} 29. Bd6 {[%emt 0:00:36]} Bc5 {[%emt 0:08:40]} 30. Bxb7 {[%emt 0:04:46]} Bxd6 {[%emt 0:00:04]} 31. exd6 {[%emt 0:00:23]} Rb8 {[%emt 0:00:03]} 32. Bg2 {[%emt 0:00:37]} Rxd6 {[%emt 0:00:05]} 33. c5 {[%emt 0:00:19]} Rd4 {[%emt 0:00:46]} 34. c6 {[%emt 0:01:27]} Rc8 {[%emt 0:00:03]} 35. Rad1 {[%emt 0:00:44]} e5 {[%emt 0:02:20]} 36. Rxd4 {[%emt 0:02:04]} exd4 {[%emt 0:00:01]} 37. Bd5 {[%emt 0:00:09]} Rc7 {[%emt 0:02:21]} 38. Kh2 {[%emt 0:00:30]} d3 {[%emt 0:00:11]} 39. Rxf7 {[%emt 0:01:00]} Be4 {[%emt 0:06:23]} 40. Rxc7+ {[%emt 0:00:08]} Bxd5 {[%emt 0:00:02]} 41. Rd7 {[%emt 0:00:08]} Bxc6 {[%emt 0:00:08]} 42. Rxd3 {[%emt 0:00:05]} a6 {[%emt 0:00:52]} 43. a4 {[%emt 0:00:30]} Kh7 {[%emt 0:00:39]} 44. Rd6 {[%emt 0:00:17]} Bb7 {[%emt 0:00:06]} 45. Kg3 {[%emt 0:00:25]} 1-0